bitfinex/quotes_SOLUSD_20240808
["timestamp","ask_amount","ask_price","bid_price","bid_amount"]
[1723081470139,0.849465,150.94,150.77,37.11]
[1723081470140,6.6257,150.93,150.77,37.11]
[1723081470308,7.474765,150.94,150.77,37.11]
[1723081470523,0.849465,150.94,150.77,37.11]
[1723081470721,0.849465,150.94,150.77,38.43593547]
[1723081471122,0.849465,150.94,150.81,37.11]
[1723081471523,0.849465,150.94,150.82,1.32565682]
[1723081471725,0.849465,150.94,150.85,37.11]
[1723081471907,0.849465,150.94,150.86,21.32527583]
[1723081472213,0.849465,150.94,150.89,37.11]
[1723081472412,53.56930911,150.96,150.93,37.11]
[1723081472709,53.56930911,150.96,150.94,20.0]
[1723081473424,53.56930911,150.96,150.94,21.32471307]
[1723081473617,53.56930911,150.96,150.94,20.0]
[1723081474004,53.56930911,150.96,150.9,1.29495667]
[1723081474203,53.56930911,150.96,150.9,21.32503923]
[1723081474413,0.849465,151.09,150.95,37.11]
[1723081474675,0.849465,151.09,150.97,22.5899]
[1723081474863,0.849465,151.09,150.98,21.32368595]
[1723081475309,0.849465,151.09,151.01,37.11]
[1723081475513,0.849465,151.09,151.06,37.11]
[1723081475817,0.849465,151.09,151.04,37.11]
[1723081476023,0.849465,151.09,151.05,1.32344837]
[1723081476269,0.849465,151.09,151.0,20.0]
[1723081476551,0.849465,151.09,151.06,37.11]
[1723081476749,0.849465,151.09,151.07,20.0]
[1723081476933,0.849465,151.09,151.06,1.32266349]
[1723081477111,0.849465,151.09,151.04,37.11]
[1723081477311,0.849465,151.09,151.05,20.0]
[1723081477732,111.35034864,151.12,151.08,37.11]
[1723081477922,111.35034864,151.12,151.09,21.32255291]
[1723081478136,32.35034864,151.12,151.09,21.32255291]
[1723081478355,32.35034864,151.12,151.11,37.11]
[1723081478529,32.35034864,151.12,151.11,57.11]
[1723081478735,0.849465,151.24,151.11,57.11]
[1723081478931,0.849465,151.24,151.13,37.11]
[1723081479253,0.178804,151.24,151.14,21.3225923]
[1723081479420,0.178804,151.24,151.15,1.32226263]
[1723081480049,15.9138,151.23,151.05,1.32261854]
[1723081480249,15.9138,151.23,151.06,1.32317739]
[1723081481044,15.9138,151.23,151.06,1.32317376]
[1723081481280,0.17,151.22,151.06,1.32317376]
[1723081481720,6.5194,151.21,151.01,1.32341499]
[1723081481928,45.34,151.2,150.99,37.11]
[1723081482246,51.9538,151.2,150.93,6.308]
[1723081482418,6.6149,151.18,150.99,37.11]
[1723081482632,6.6149,151.18,150.93,6.308]
[1723081482633,6.6167,151.14,150.94,1.32354706]
[1723081482837,45.34,151.13,150.94,38.43354706]
[1723081483519,45.34,151.13,150.98,37.11]
[1723081483850,45.0,151.12,150.99,1.3240704]
[1723081484056,0.17,151.11,150.99,1.32402569]
[1723081484215,0.34,151.13,150.99,1.32402569]
[1723081484749,0.17,151.13,151.02,37.11]
[1723081485052,0.17,151.13,151.03,1.32373483]
[1723081485252,15.7806,151.16,151.03,21.32373483]
[1723081485551,15.7806,151.16,151.03,21.3231419]
[1723081485748,15.7806,151.16,151.03,21.32254937]
[1723081485932,15.7806,151.16,151.05,37.11]
[1723081486138,15.8472,151.22,151.09,37.11]
[1723081486337,15.8472,151.22,151.1,1.32282644]
[1723081486542,0.178804,151.24,151.21,37.11]
[1723081486746,1.4937667,151.26,151.22,21.32203817]
[1723081487073,1.65461096,151.44,151.33,37.11]
[1723081487218,1.65461096,151.44,151.34,27.5147286]
[1723081487422,1.65461096,151.44,151.34,26.19414708]
[1723081487656,1.65461096,151.44,151.34,20.0]
[1723081487827,1.65461096,151.44,151.32,1.32109434]
[1723081487828,1.65461096,151.44,151.32,1.32131045]
[1723081488030,1.65461096,151.44,151.33,1.32112168]
[1723081488358,1.65461096,151.44,151.29,20.0]
[1723081488359,1.65461096,151.44,151.42,37.11]
[1723081488524,80.14994562,151.6,151.43,21.32016582]
[1723081489036,15.1205,151.57,151.38,1.31987746]
[1723081489236,15.1205,151.57,151.44,37.11]
[1723081489658,80.14994562,151.6,151.45,1.32019891]
[1723081489827,80.14994562,151.6,151.46,0.17]
[1723081489939,80.14994562,151.6,151.57,37.11]
[1723081490177,80.14994562,151.6,151.46,0.34]
[1723081490178,80.14994562,151.6,151.58,20.0]
[1723081490547,1.343431,151.67,151.6,6.6046]
[1723081490899,1.343431,151.67,151.59,74.22]
[1723081490900,6.89228591,151.78,151.73,10.31271122]
[1723081491028,0.1164404,151.81,151.73,10.31271122]
[1723081491253,0.1164404,151.81,151.74,20.0]
[1723081491441,0.1164404,151.81,151.79,37.11]
[1723081491658,20.0,151.93,151.8,21.31656221]
[1723081491846,6.5749,152.1,151.8,21.31656221]
[1723081491847,20.0,152.05,151.8,21.31656221]
[1723081492047,81.53379487,151.91,151.8,21.05225221]
[1723081492255,15.9315,152.13,151.81,62.99794961]
[1723081492456,15.9315,152.13,151.81,17.99794961]
[1723081492661,15.9315,152.13,151.75,0.34]
[1723081492662,15.9315,152.13,151.91,37.11]
[1723081492865,15.9315,152.13,151.92,45.0]
[1723081493031,15.9315,152.13,151.91,20.0]
[1723081493354,15.9315,152.13,151.84,37.11]
[1723081493355,15.9315,152.13,151.92,102.45]
[1723081493577,10.70461803,152.14,151.92,65.0]
[1723081493578,6.63611803,152.14,151.92,65.0]
[1723081493950,6.63611803,152.14,151.93,0.17]
[1723081494295,6.63611803,152.14,151.93,14.77995293]
[1723081494443,6.63611803,152.14,151.94,65.17]
[1723081494649,6.63611803,152.14,151.95,0.17]
[1723081494937,6.63611803,152.14,151.96,15.9423]
[1723081495057,1.2169086,152.18,151.97,45.34]
[1723081495245,1.2169086,152.18,151.98,20.0]
[1723081495435,1.2169086,152.18,152.1,37.11]
[1723081495666,1.2169086,152.18,152.11,20.0]
[1723081496161,1.2169086,152.18,152.09,37.11]
[1723081496368,1.2169086,152.18,152.1,45.0]
[1723081496655,1.2169086,152.18,152.11,1.84267193]
[1723081496868,1.2169086,152.18,152.14,20.0]
[1723081497153,6.2043,152.43,152.15,46.67227688]
[1723081497353,6.2043,152.43,152.16,38.78217815]
[1723081497532,6.2043,152.43,152.22,20.0]
[1723081497731,6.2043,152.43,152.22,66.84158605]
[1723081497932,8.19460784,152.23,152.22,94.07106747]
[1723081498247,0.32798,152.45,152.26,20.0]
[1723081498454,0.32798,152.45,152.37,37.11]
[1723081498653,0.32798,152.45,152.38,1.50000937]
[1723081498951,1.7183518,152.49,152.45,0.32798]
[1723081499159,114.84293893,152.55,152.54,20.0]
[1723081499330,92.18959711,152.55,152.54,94.70732039]
[1723081499536,36.73,152.84,152.68,20.0]
[1723081499749,36.73,152.84,152.69,66.83696396]
[1723081499933,133.31121864,152.87,152.7,1.49686593]
[1723081500337,133.31121864,152.87,152.71,7.96397862]
[1723081500539,133.31121864,152.87,152.72,86.8366699]
[1723081500744,133.31121864,152.87,152.73,9.9307172]
[1723081500955,36.73,152.81,152.74,21.49647393]
[1723081501131,133.31121864,152.87,152.55,20.0]
[1723081501459,133.31121864,152.87,150.97,32.93667137]
[1723081501460,36.73,152.7,152.56,1.49823956]
[1723081501757,36.73,152.71,152.56,1.49823956]
[1723081501959,36.73,152.75,152.56,1.49823956]
[1723081502156,6.5475,152.73,152.56,1.49823956]
[1723081502464,36.73,152.65,152.46,20.0]
[1723081502660,6.5514,152.64,152.4,36.73]
[1723081502829,6.5532,152.6,152.41,1.49971411]
[1723081503148,36.73,152.53,152.41,1.49971411]
[1723081503357,0.17,152.52,152.41,1.49971411]
[1723081503572,36.73,152.47,152.24,36.73]
[1723081503857,0.17,152.48,152.25,1.50129017]
[1723081504071,0.17,152.43,152.25,1.50129017]
[1723081504270,6.6401,152.39,152.16,36.73]
[1723081504434,6.5636,152.36,152.16,36.73]
[1723081504641,15.899,152.37,152.16,36.73]
[1723081504837,6.5642,152.35,152.17,1.50207944]
[1723081505080,20.17,152.34,152.1,36.73]
[1723081505259,36.73,152.32,152.1,36.73]
[1723081505566,0.17,152.34,152.1,38.23277073]
[1723081505859,6.5655,152.31,152.11,1.50267193]
[1723081506062,35.899,152.37,152.18,36.73]
[1723081506063,15.899,152.37,152.18,36.73]
[1723081506254,15.899,152.37,152.22,36.73]
[1723081506460,15.899,152.37,152.04,20.0]
[1723081506642,20.0,152.34,152.1,36.73]
[1723081506838,15.899,152.37,152.22,36.73]
[1723081507259,15.899,152.37,152.22,1.50158605]
[1723081507451,15.899,152.37,152.15,36.73]
[1723081507658,15.899,152.37,152.01,20.0]
[1723081507858,15.899,152.37,152.11,36.73]
[1723081508039,32.79671155,152.28,152.06,36.73]
[1723081508241,32.79671155,152.28,152.1,36.73]
[1723081508443,6.305,152.29,152.1,38.23277073]
[1723081508642,0.34,152.28,152.08,36.73]
[1723081508950,6.305,152.29,152.12,36.73]
[1723081509252,6.305,152.29,152.13,56.73]
[1723081509459,15.899,152.37,152.21,36.73]
[1723081509667,15.899,152.37,152.25,36.73]
[1723081509963,22.4272,152.5,152.33,36.73]
[1723081510142,22.4272,152.5,152.33,1.50050173]
[1723081510646,22.4272,152.5,152.34,1.50040323]
[1723081510846,22.4272,152.5,152.34,36.73]
[1723081511054,22.4272,152.5,152.35,21.50030474]
[1723081511257,22.4272,152.5,152.35,20.0]
[1723081511569,22.4272,152.5,152.35,21.50030474]
[1723081511753,22.4272,152.5,152.36,20.0]
[1723081511955,22.4272,152.5,152.33,20.0]
[1723081511956,22.4272,152.5,152.28,36.73]
[1723081512155,36.73,152.48,152.24,36.73]
[1723081512352,22.4272,152.5,152.25,1.50129017]
[1723081512580,22.4272,152.5,152.33,36.73]
[1723081512766,6.6377,152.61,152.41,36.73]
[1723081512964,6.6377,152.61,152.41,38.22971411]
[1723081513168,6.6377,152.61,152.41,1.49971411]
[1723081513344,6.6377,152.61,152.32,56.73]
[1723081513547,20.0,152.6,152.33,1.50050173]
[1723081513747,36.73,152.53,152.26,36.73]
[1723081513978,36.73,152.4,152.15,36.73]
[1723081514574,6.2083,152.46,152.32,36.73]
[1723081514759,6.2083,152.46,152.39,36.73]
[1723081515176,6.2083,152.46,152.33,1.50050173]
[1723081515481,6.2083,152.46,152.26,36.73]
[1723081515781,36.73,152.4,152.17,20.0]
[1723081515946,36.73,152.4,152.18,1.50198073]
[1723081516147,6.2083,152.46,152.21,36.73]
[1723081516349,6.2083,152.46,152.33,36.73]
[1723081516572,6.2083,152.46,152.34,36.73]
[1723081516779,6.2083,152.46,152.32,36.73]
[1723081517163,5.280156,152.46,152.36,36.73]
[1723081517464,5.280156,152.46,152.32,36.73]
[1723081517669,5.280156,152.46,152.24,36.73]
[1723081517851,11.839356,152.46,152.24,36.73]
[1723081518551,5.280156,152.46,152.32,36.73]
[1723081519149,5.280156,152.46,152.32,56.73]
[1723081519350,5.280156,152.46,152.39,36.73]
[1723081519567,16.335,152.47,152.4,20.0]
[1723081519770,6.5512,152.65,152.4,20.0]
[1723081519771,16.5076,152.63,152.4,21.49981252]
[1723081520163,6.5757,152.62,152.4,21.49981252]
[1723081520482,36.73,152.6,152.32,63.005424]
[1723081520777,36.73,152.56,152.32,1.50060024]
[1723081520953,36.73,152.56,152.24,36.73]
[1723081520954,6.5586,152.48,152.27,26.287418]
[1723081521158,16.5076,152.5,152.28,36.73]
[1723081521349,20.0,152.49,152.28,36.73]
[1723081521553,16.5076,152.5,152.28,36.73]
[1723081521755,6.5586,152.48,152.25,16.5076]
[1723081521977,65.17,152.47,152.24,36.73]
[1723081522286,45.17,152.49,152.24,38.23138878]
[1723081522655,45.17,152.49,152.25,1.50129017]
[1723081522853,16.5076,152.5,152.35,36.73]
[1723081523066,16.5076,152.5,152.49,0.83482323]
[1723081523249,16.5076,152.5,152.36,38.23020627]
[1723081523450,16.5076,152.5,152.4,36.73]
[1723081523880,16.5076,152.5,152.41,20.0]
[1723081524078,16.5076,152.5,152.44,36.73]
[1723081524369,6.0656,152.58,152.4,36.73]
[1723081524658,6.0656,152.58,152.4,38.22981252]
[1723081525107,6.0656,152.58,152.36,36.73]
[1723081525275,12.6196,152.58,152.29,20.0]
[1723081525482,12.6196,152.58,152.25,20.0]
[1723081525778,6.0656,152.58,152.33,1.50050173]
[1723081525977,6.0656,152.58,152.38,36.73]
[1723081526167,6.0656,152.58,152.33,21.50050173]
[1723081526168,20.0,152.57,152.33,1.50050173]
[1723081526678,6.5549,152.56,152.33,1.50050173]
[1723081526850,6.0656,152.58,152.36,36.73]
[1723081527047,6.0656,152.58,152.4,36.73]
[1723081527279,6.5546,152.57,152.37,1.50010782]
[1723081527460,6.5546,152.57,152.32,36.73]
[1723081527461,36.73,152.56,152.32,36.73]
[1723081527662,36.73,152.52,152.27,36.73]
[1723081527863,6.5597,152.45,152.27,36.73]
[1723081528075,36.73,152.44,152.12,20.0]
[1723081528376,0.17,152.43,152.23,36.73]
[1723081528584,6.2346,152.47,152.39,36.73]
[1723081528795,6.2346,152.47,152.35,36.73]
[1723081529299,16.4607,152.51,152.36,1.50020627]
[1723081529462,16.4607,152.51,152.32,36.73]
[1723081529961,16.4607,152.51,152.33,1.50050173]
[1723081530166,16.4607,152.51,152.37,36.73]
[1723081530473,16.4607,152.51,152.41,36.73]
[1723081530675,16.4607,152.51,152.37,1.50010782]
[1723081530887,6.5585,152.48,152.25,36.73]
[1723081531061,36.73,152.49,152.25,36.73]
[1723081531473,6.5589,152.47,152.25,36.73]
[1723081531680,20.0,152.46,152.25,36.73]
[1723081531864,0.17,152.45,152.25,36.73]
[1723081532188,6.5213,152.44,152.21,36.73]
[1723081532366,45.34,152.43,152.22,1.50158605]
[1723081532571,0.34,152.43,152.25,36.73]
[1723081532867,6.5213,152.44,152.25,36.73]
[1723081533071,6.5213,152.44,152.25,38.23129017]
[1723081533587,36.73,152.43,152.2,36.73]
[1723081533789,20.0,152.42,152.2,36.73]
[1723081534084,16.4607,152.51,152.29,36.73]
[1723081534386,16.4607,152.51,152.42,36.73]
[1723081534592,16.4607,152.51,152.38,36.73]
[1723081534798,16.4607,152.51,152.39,1.31168845]
[1723081534963,16.4607,152.51,152.42,36.73]
[1723081535166,16.4607,152.51,152.43,22.81070827]
[1723081535371,16.4607,152.51,152.46,36.73]
[1723081535574,6.6141,152.59,152.47,21.65097592]
[1723081535788,6.6141,152.59,152.48,1.30941634]
[1723081535972,6.6141,152.59,152.47,20.0]
[1723081536176,6.6141,152.59,152.43,20.0]
[1723081536369,6.6141,152.59,152.44,1.83941897]
[1723081536583,6.6141,152.59,152.45,1.49932062]
[1723081536765,6.6141,152.59,152.46,0.34]
[1723081536974,6.6141,152.59,152.46,1.83922227]
[1723081537174,6.6141,152.59,152.46,1.49922227]
[1723081537675,6.6141,152.59,152.47,0.17]
[1723081537992,6.6141,152.59,152.47,1.66912394]
[1723081538191,6.6141,152.59,152.48,0.17]
[1723081538381,6.6141,152.59,152.49,36.73]
[1723081538591,6.6141,152.59,152.5,20.0]
[1723081538771,6.6141,152.59,152.48,1.49902563]
[1723081538977,6.6141,152.59,152.4,36.73]
[1723081539166,6.6141,152.59,152.44,36.73]
[1723081539373,6.6141,152.59,152.45,1.30969371]
[1723081539577,6.6141,152.59,152.44,36.73]
[1723081540377,6.6141,152.59,152.45,21.15017327]
[1723081540697,6.6141,152.59,152.45,1.15017327]
[1723081540998,0.34,152.58,152.41,1.15032881]
[1723081541209,0.34,152.58,152.32,56.73]
[1723081541210,6.5558,152.54,152.32,36.73]
[1723081541502,45.34,152.53,152.33,1.50050173]
[1723081541671,0.34,152.53,152.34,1.31159736]
[1723081541998,0.34,152.53,152.36,36.73]
[1723081542202,0.34,152.53,152.33,2.81225306]
[1723081542492,0.34,152.52,152.34,1.31201036]
[1723081542696,20.0,152.53,152.34,1.31201036]
[1723081542999,43.3441,152.59,152.35,1.50030474]
[1723081543211,0.17,152.58,152.36,1.31138685]
[1723081543367,6.5557,152.54,152.36,1.31138685]
[1723081543568,6.5566,152.52,152.36,1.31138685]
[1723081543869,16.002,152.5,152.37,1.31163507]
[1723081544276,16.002,152.5,152.4,36.73]
[1723081544476,6.6141,152.59,152.48,36.73]
[1723081544699,6.6141,152.59,152.49,1.31059054]
[1723081545202,6.4492,152.71,152.55,36.73]
[1723081545397,6.4492,152.71,152.59,36.73]
[1723081545696,6.4492,152.71,152.63,36.73]
[1723081545913,6.4492,152.71,152.6,21.30922256]
[1723081545914,6.0954,152.82,152.67,36.73]
[1723081546208,6.0954,152.82,152.75,36.73]
[1723081546373,15.7574,152.86,152.76,22.80426723]
[1723081546572,15.7574,152.86,152.79,36.73]
[1723081546884,15.7574,152.86,152.8,21.30764682]
[1723081547198,132.63460166,152.87,152.8,20.0]
[1723081547403,132.63460166,152.87,152.83,56.73]
[1723081547577,53.57460166,152.87,152.84,23.1431701]
[1723081547782,53.57460166,152.87,152.85,21.49539698]
[1723081547980,53.57460166,152.87,152.86,21.83529915]
[1723081548182,53.57460166,152.87,152.73,36.73]
[1723081548580,53.57460166,152.87,152.77,36.73]
[1723081548899,53.57460166,152.87,152.74,0.17]
[1723081549200,53.57460166,152.87,152.77,36.73]
[1723081549499,6.0817,152.86,152.68,36.73]
[1723081549710,6.0817,152.86,152.66,26.207281]
[1723081549881,6.0817,152.86,152.58,20.0]
[1723081549882,36.73,152.82,152.58,36.73]
[1723081550198,20.0,152.81,152.59,26.233621]
[1723081550402,15.9211,152.85,152.62,36.73]
[1723081550609,0.17,152.84,152.63,0.38275393]
[1723081551095,0.17,152.84,152.64,0.3803637]
[1723081551398,0.17,152.84,152.65,1.30968445]
[1723081552189,15.9211,152.85,152.65,15.9211]
[1723081552405,15.9211,152.85,152.7,36.73]
[1723081552707,15.9211,152.85,152.67,36.73]
[1723081552895,22.4636,152.85,152.65,15.9211]
[1723081553094,36.73,152.84,152.58,0.85178304]
[1723081553406,15.9211,152.85,152.58,26.235526]
[1723081553407,15.3167,152.75,152.58,26.235526]
[1723081553777,51.3082,152.74,152.58,26.235526]
[1723081553973,6.5504,152.67,152.44,43.56977843]
[1723081554280,45.34,152.66,152.41,26.259846]
[1723081554705,45.34,152.66,152.42,0.4787684]
[1723081554706,6.5519,152.63,152.42,0.4787684]
[1723081554913,16.2628,152.61,152.42,0.4787684]
[1723081555145,45.34,152.6,152.4,36.73]
[1723081555403,51.8932,152.6,152.41,1.3114517]
[1723081555608,45.34,152.6,152.4,36.73]
[1723081555777,0.34,152.6,152.4,36.73]
[1723081555979,16.2628,152.61,152.4,36.73]
[1723081556419,51.8932,152.6,152.4,36.73]
[1723081556584,45.34,152.6,152.4,36.73]
[1723081556785,6.5536,152.59,152.4,36.73]
[1723081556988,6.3472,152.57,152.36,37.74495318]
[1723081557210,6.3472,152.57,152.36,1.01495318]
[1723081557211,36.9,152.56,152.36,1.01495318]
[1723081557521,0.17,152.55,152.37,1.31191978]
[1723081557682,0.17,152.55,152.32,36.73]
[1723081557890,6.5558,152.54,152.32,36.73]
[1723081558200,0.17,152.55,152.32,36.73]
[1723081558201,45.34,152.53,152.32,36.73]
[1723081558403,45.34,152.53,152.33,0.84750703]
[1723081558404,0.17,152.52,152.33,0.84750703]
[1723081558708,43.2851,152.56,152.32,36.73]
[1723081558915,45.34,152.55,152.33,1.3119196]
[1723081559104,36.73,152.52,152.28,36.73]
[1723081559305,45.34,152.51,152.29,1.08111912]
[1723081559501,6.5584,152.48,152.25,1.08830156]
[1723081559695,45.34,152.47,152.25,1.08830156]
[1723081560019,13.87741483,152.46,152.22,36.73]
[1723081560318,65.0,152.45,152.23,0.85027542]
[1723081560519,53.2809,152.44,152.18,36.73]
[1723081560821,45.0,152.43,152.18,36.73]
[1723081561119,0.34,152.42,152.22,36.73]
[1723081561499,36.73,152.43,152.16,6.86596426]
[1723081561694,6.86639058,152.41,152.19,36.73]
[1723081561894,6.86639058,152.41,152.23,36.73]
[1723081562117,6.5604,152.43,152.23,36.73]
[1723081562296,6.86583616,152.4,152.16,43.59596426]
[1723081562502,6.5609,152.42,152.17,16.2109]
[1723081562694,36.73,152.43,152.18,0.46983584]
[1723081562895,6.86761257,152.39,152.19,0.46980496]
[1723081563107,16.2109,152.44,152.22,36.73]
[1723081563326,36.73,152.37,152.02,20.0]
[1723081563508,6.5644,152.34,152.13,1.31294833]
[1723081563700,15.1149,152.32,152.08,36.73]
[1723081563905,0.34,152.31,152.08,36.73]
[1723081564213,0.34,152.31,152.13,1.28260113]
[1723081564416,15.1149,152.32,152.13,1.28260113]
[1723081564610,15.1149,152.32,152.18,36.73]
[1723081564802,15.1149,152.32,152.19,1.2838748]
[1723081565594,15.1149,152.32,152.15,36.73]
[1723081565995,15.1149,152.32,152.12,2.53514835]
[1723081566606,6.1661,152.3,152.12,1.2212682]
[1723081566797,65.34,152.29,152.12,1.2212682]
[1723081566995,36.73,152.28,152.12,1.2212682]
[1723081567231,6.5678,152.26,152.12,1.2212682]
[1723081567522,45.34,152.25,152.12,1.2212682]
[1723081567703,0.34,152.25,152.12,1.2212682]
[1723081567899,0.17,152.26,152.0,36.73]
[1723081568115,21.9971,152.18,152.01,8.18886781]
[1723081568299,45.34,152.17,152.01,6.87435883]
[1723081568498,45.34,152.17,151.96,36.73]
[1723081568922,36.73,152.16,151.92,43.60789459]
[1723081569125,45.34,152.15,151.92,36.73]
[1723081569328,71.9125,152.15,151.92,36.73]
[1723081569628,45.34,152.15,151.92,36.73]
[1723081569826,45.34,152.15,151.93,1.31397596]
[1723081570016,6.5739,152.12,151.88,36.73]
[1723081570327,6.0331,152.1,151.89,1.31405594]
[1723081570533,53.1524,152.08,151.85,1.31436324]
[1723081570707,6.5765,152.06,151.86,1.31427668]
[1723081570905,0.34,152.05,151.85,1.31577428]
[1723081571103,6.0331,152.01,151.83,1.3164836]
[1723081571420,6.0331,152.01,151.86,1.3164836]
[1723081571615,6.0331,152.01,151.9,36.73]
[1723081571824,6.0331,152.01,151.94,36.73]
[1723081572002,6.0331,152.01,151.86,1.31557539]
[1723081572201,6.0331,152.01,151.86,54.46797539]
[1723081572630,6.0331,152.01,151.86,38.04557539]
[1723081573423,16.4224,152.08,151.99,36.73]
[1723081573603,16.4224,152.08,151.93,1.31515595]
[1723081574533,16.4224,152.08,151.94,0.34]
[1723081574735,16.4224,152.08,151.97,36.73]
[1723081574931,6.393,152.11,152.05,36.73]
[1723081575231,15.0539,152.18,152.06,21.31420658]
[1723081575532,15.0539,152.18,152.07,45.0]
[1723081575708,15.0539,152.18,152.08,20.0]
[1723081576329,15.0539,152.18,151.98,20.0]
[1723081576639,15.0539,152.18,152.08,36.73]
[1723081576835,15.0539,152.18,152.09,21.31356855]
[1723081577014,6.393,152.2,152.09,21.31356855]
[1723081577505,6.393,152.2,152.1,1.31412967]
[1723081577928,6.393,152.2,152.1,1.31335207]
[1723081578132,6.393,152.2,152.02,36.73]
[1723081578435,6.393,152.2,151.98,36.73]
[1723081578641,6.393,152.2,152.03,36.73]
[1723081578849,6.393,152.2,151.96,20.0]
[1723081579012,6.393,152.2,152.03,36.73]
[1723081579414,6.393,152.2,152.0,36.73]
[1723081579720,6.393,152.2,152.01,1.31477102]
[1723081579923,6.393,152.2,152.01,1.31448337]
[1723081579924,0.17,152.19,152.01,1.31448337]
[1723081580124,6.5712,152.18,151.99,36.73]
[1723081580339,0.17,152.17,152.0,0.56106345]
[1723081580633,0.17,152.17,152.0,0.5684615]
[1723081580842,0.17,152.14,152.01,0.57652413]
[1723081581135,0.17,152.17,151.97,1.31501629]
[1723081581510,6.393,152.2,152.0,36.73]
[1723081581735,6.393,152.2,152.01,1.31091435]
[1723081581935,6.393,152.2,152.0,36.73]
[1723081582316,6.393,152.2,152.04,36.73]
[1723081582640,6.393,152.2,152.12,36.73]
[1723081582839,6.1225,152.29,152.16,36.73]
[1723081583031,6.1225,152.29,152.28,0.65783414]
[1723081583231,6.1225,152.29,152.21,20.0]
[1723081583705,6.1225,152.29,152.22,1.27785933]
[1723081583910,6.1225,152.29,152.2,15.371]
[1723081584108,6.1225,152.29,152.12,36.73]
[1723081584324,6.1225,152.29,152.09,26.314412]
[1723081584738,6.1225,152.29,152.0,36.73]
[1723081584923,20.0,152.24,152.09,6.867785]
[1723081585235,20.0,152.24,151.92,36.73]
[1723081585236,36.73,152.19,151.92,36.73]
[1723081585435,6.5729,152.14,151.92,36.73]
[1723081585612,0.34,152.15,151.92,36.73]
[1723081585810,0.34,152.15,151.89,26.348486]
[1723081586015,37.07,152.15,151.89,36.73]
[1723081586318,36.73,152.11,151.89,36.73]
[1723081586521,6.4594,152.09,151.84,36.73]
[1723081586730,6.4594,152.09,151.89,36.73]
[1723081586918,6.4594,152.09,151.93,36.73]
[1723081587436,6.5766,152.06,151.84,36.73]
[1723081587618,0.34,152.05,151.84,36.73]
[1723081587811,51.9169,152.05,151.84,36.73]
[1723081588017,45.34,152.05,151.84,36.73]
[1723081588238,0.34,152.05,151.85,1.19309175]
[1723081588427,45.0,152.06,151.88,36.73]
[1723081588737,6.4594,152.09,151.89,1.19277754]
[1723081588912,45.34,152.08,151.9,1.19269901]
[1723081589109,6.4594,152.09,151.9,1.19269901]
[1723081589333,6.4594,152.09,151.95,36.73]
[1723081589519,6.4594,152.09,151.96,1.19222808]
[1723081589718,6.4594,152.09,151.96,21.19222808]
[1723081590322,6.4594,152.09,151.86,36.73]
[1723081590528,6.4594,152.09,151.9,36.73]
[1723081590724,6.4594,152.09,151.91,1.31552527]
[1723081590922,0.4594,152.09,151.9,36.73]
[1723081591127,0.4594,152.09,151.94,36.73]
[1723081591339,0.4594,152.09,151.95,1.3152818]
[1723081591514,0.4594,152.09,151.96,1.31519141]
[1723081591832,16.4783,152.22,151.96,1.31508206]